[Event "Late-Titled-Tuesday-Blitz-March-05-2024"]
[Site "Chess.com"]
[Date "2024.03.05"]
[Round "6"]
[White "PepeCuenca"]
[Black "PapaieDudu"]
[Result "0-1"]
[WhiteElo "2676"]
[BlackElo "2446"]
[TimeControl "180+1"]
[EndTime "15:04:58 PST"]
[Termination "PapaieDudu won on time"]

1. c4 {[%clk 0:03:00.9]} 1... e6 {[%clk 0:02:58.9]} 2. Nf3 {[%clk 0:03:00.9]}
2... d5 {[%clk 0:02:57.7]} 3. b3 {[%clk 0:02:59.6]} 3... Nf6 {[%clk 0:02:57.8]}
4. g3 {[%clk 0:03:00.1]} 4... Be7 {[%clk 0:02:58.2]} 5. Bb2 {[%clk 0:03:00.7]}
5... O-O {[%clk 0:02:58.8]} 6. Bg2 {[%clk 0:03:01.4]} 6... a6 {[%clk 0:02:59.1]}
7. O-O {[%clk 0:02:54.4]} 7... b5 {[%clk 0:02:56.3]} 8. cxd5 {[%clk 0:02:48.2]}
8... exd5 {[%clk 0:02:53.9]} 9. d4 {[%clk 0:02:46.9]} 9... Bf5 {[%clk
0:02:53.8]} 10. Nbd2 {[%clk 0:02:44.5]} 10... h6 {[%clk 0:02:52]} 11. Ne5 {[%clk
0:02:41.2]} 11... Re8 {[%clk 0:02:50.2]} 12. Rc1 {[%clk 0:02:34.9]} 12... Bd6
{[%clk 0:02:49.9]} 13. Ndf3 {[%clk 0:02:22.9]} 13... Ne4 {[%clk 0:02:48.7]} 14.
e3 {[%clk 0:02:13.1]} 14... Bh7 {[%clk 0:02:47.3]} 15. Ne1 {[%clk 0:02:07.5]}
15... Nd7 {[%clk 0:02:38.3]} 16. Nc6 {[%clk 0:02:00.3]} 16... Qf6 {[%clk
0:02:37.9]} 17. Nd3 {[%clk 0:01:59.4]} 17... a5 {[%clk 0:02:27.7]} 18. Nf4
{[%clk 0:01:25.7]} 18... Nb6 {[%clk 0:02:25.5]} 19. Nd3 {[%clk 0:01:15.6]} 19...
a4 {[%clk 0:02:24.1]} 20. Nde5 {[%clk 0:00:59.3]} 20... axb3 {[%clk 0:01:37.8]}
21. axb3 {[%clk 0:00:50.5]} 21... Ra2 {[%clk 0:01:34.2]} 22. Rc2 {[%clk
0:00:50.9]} 22... Qe6 {[%clk 0:01:22.1]} 23. Nd3 {[%clk 0:00:38.9]} 23... Rea8
{[%clk 0:01:18.2]} 24. Ndb4 {[%clk 0:00:36.1]} 24... Bxb4 {[%clk 0:00:50.3]} 25.
Nxb4 {[%clk 0:00:36.1]} 25... R2a7 {[%clk 0:00:44.2]} 26. Nc6 {[%clk 0:00:36.1]}
26... Ra2 {[%clk 0:00:43.1]} 27. Nb4 {[%clk 0:00:36.1]} 27... R2a7 {[%clk
0:00:42.3]} 28. Rc1 {[%clk 0:00:29.7]} 28... Bf5 {[%clk 0:00:30.7]} 29. f3
{[%clk 0:00:22.1]} 29... Ng5 {[%clk 0:00:30.1]} 30. Qd2 {[%clk 0:00:10.9]} 30...
Bh3 {[%clk 0:00:29.6]} 31. Ra1 {[%clk 0:00:05.8]} 31... Bxg2 {[%clk 0:00:27.1]}
32. Kxg2 {[%clk 0:00:03.2]} 32... Qh3+ {[%clk 0:00:25.8]} 0-1

[Event "Late-Titled-Tuesday-Blitz-March-05-2024"]
[Site "Chess.com"]
[Date "2024.03.05"]
[Round "6"]
[White "Eeleyah"]
[Black "sotochess"]
[Result "0-1"]
[WhiteElo "2462"]
[BlackElo "2584"]
[TimeControl "180+1"]
[EndTime "15:05:01 PST"]
[Termination "sotochess won on time"]

1. d4 {[%clk 0:03:00.9]} 1... Nf6 {[%clk 0:02:57.8]} 2. c4 {[%clk 0:03:01.3]}
2... e6 {[%clk 0:02:53.8]} 3. g3 {[%clk 0:03:01.2]} 3... d5 {[%clk 0:02:53.5]}
4. Bg2 {[%clk 0:03:01.7]} 4... Be7 {[%clk 0:02:50.6]} 5. Nf3 {[%clk 0:03:02.2]}
5... O-O {[%clk 0:02:49.8]} 6. O-O {[%clk 0:03:02.9]} 6... c5 {[%clk 0:02:44]}
7. cxd5 {[%clk 0:03:02.2]} 7... Nxd5 {[%clk 0:02:42.1]} 8. a3 {[%clk 0:02:46]}
8... Nf6 {[%clk 0:02:26]} 9. dxc5 {[%clk 0:02:42.8]} 9... Bxc5 {[%clk
0:02:24.2]} 10. b4 {[%clk 0:02:37.7]} 10... Be7 {[%clk 0:02:20.7]} 11. Nc3
{[%clk 0:02:32.1]} 11... a5 {[%clk 0:02:20.2]} 12. b5 {[%clk 0:02:25.1]} 12...
Nbd7 {[%clk 0:02:18.3]} 13. Na4 {[%clk 0:02:19.6]} 13... Nc5 {[%clk 0:02:11.5]}
14. Nxc5 {[%clk 0:02:13.1]} 14... Bxc5 {[%clk 0:02:10.4]} 15. Qb3 {[%clk
0:02:12.5]} 15... a4 {[%clk 0:02:07.3]} 16. Qc2 {[%clk 0:02:08]} 16... Qe7
{[%clk 0:02:05.1]} 17. Bb2 {[%clk 0:01:55.5]} 17... Bd7 {[%clk 0:02:01.4]} 18.
Bxf6 {[%clk 0:01:35.6]} 18... gxf6 {[%clk 0:01:59.5]} 19. Qb2 {[%clk 0:01:32.7]}
19... Ra5 {[%clk 0:01:46.7]} 20. Rfc1 {[%clk 0:01:03.8]} 20... Rxb5 {[%clk
0:01:42.6]} 21. Qc2 {[%clk 0:01:03.9]} 21... Ra5 {[%clk 0:01:30.9]} 22. Nd2
{[%clk 0:01:00.6]} 22... b6 {[%clk 0:01:19.7]} 23. Ne4 {[%clk 0:00:47.9]} 23...
Bxa3 {[%clk 0:01:11.3]} 24. Qc3 {[%clk 0:00:48.2]} 24... Bxc1 {[%clk 0:00:54.8]}
25. Nxf6+ {[%clk 0:00:39.7]} 25... Kh8 {[%clk 0:00:54]} 26. Nxd7+ {[%clk
0:00:36.4]} 26... f6 {[%clk 0:00:45.1]} 27. Nxf8 {[%clk 0:00:36.5]} 27... Rc5
{[%clk 0:00:44.5]} 28. Qe1 {[%clk 0:00:08.1]} 28... Bb2 {[%clk 0:00:39.7]} 29.
Qb1 {[%clk 0:00:05.2]} 29... Rc1+ {[%clk 0:00:31.2]} 30. Qxc1 {[%clk 0:00:05.2]}
30... Bxc1 {[%clk 0:00:31.5]} 31. Rxc1 {[%clk 0:00:06.1]} 31... Qxf8 {[%clk
0:00:31.9]} 32. Bc6 {[%clk 0:00:05]} 32... a3 {[%clk 0:00:31.3]} 33. Bd7 {[%clk
0:00:03.7]} 33... Qd6 {[%clk 0:00:30.5]} 0-1

[Event "Late-Titled-Tuesday-Blitz-March-05-2024"]
[Site "Chess.com"]
[Date "2024.03.05"]
[Round "6"]
[White "AldokhinIvan"]
[Black "TenisMaster"]
[Result "0-1"]
[WhiteElo "2692"]
[BlackElo "2880"]
[TimeControl "180+1"]
[EndTime "15:05:02 PST"]
[Termination "TenisMaster won on time"]

1. e4 {[%clk 0:03:00.9]} 1... d5 {[%clk 0:02:59.7]} 2. exd5 {[%clk 0:03:00.6]}
2... Qxd5 {[%clk 0:03:00.6]} 3. Nc3 {[%clk 0:03:00.7]} 3... Qa5 {[%clk
0:03:01.3]} 4. Bc4 {[%clk 0:02:55]} 4... Nf6 {[%clk 0:03:00.9]} 5. d4 {[%clk
0:02:52.1]} 5... Bf5 {[%clk 0:02:59.9]} 6. Ne2 {[%clk 0:02:51.1]} 6... e6 {[%clk
0:02:58.9]} 7. O-O {[%clk 0:02:48.2]} 7... c6 {[%clk 0:02:43]} 8. Ng3 {[%clk
0:02:45.2]} 8... Bg6 {[%clk 0:02:40.3]} 9. f4 {[%clk 0:02:45.3]} 9... Nbd7
{[%clk 0:02:39.6]} 10. f5 {[%clk 0:02:41.9]} 10... exf5 {[%clk 0:02:33.8]} 11.
Qe2+ {[%clk 0:02:39.4]} 11... Be7 {[%clk 0:02:24.6]} 12. Bd2 {[%clk 0:02:30]}
12... Qb6 {[%clk 0:02:20.8]} 13. Kh1 {[%clk 0:01:22.7]} 13... Qxd4 {[%clk
0:02:07.6]} 14. Bb3 {[%clk 0:00:39.7]} 14... Qe5 {[%clk 0:01:52]} 15. Qf3 {[%clk
0:00:21.7]} 15... O-O {[%clk 0:01:36.1]} 16. Rae1 {[%clk 0:00:18.2]} 16... Ne4
{[%clk 0:01:18.6]} 17. Nxf5 {[%clk 0:00:14.5]} 17... Qxf5 {[%clk 0:00:54.1]} 18.
Qxf5 {[%clk 0:00:13.5]} 18... Bxf5 {[%clk 0:00:54.3]} 19. Rxf5 {[%clk
0:00:13.7]} 19... Nxd2 {[%clk 0:00:40.2]} 20. Rxe7 {[%clk 0:00:13.4]} 20... Nxb3
{[%clk 0:00:36.9]} 21. Rxd7 {[%clk 0:00:13.6]} 21... Rae8 {[%clk 0:00:31.3]} 22.
h3 {[%clk 0:00:07.5]} 22... Re1+ {[%clk 0:00:30.2]} 23. Kh2 {[%clk 0:00:07.6]}
23... Na1 {[%clk 0:00:30.3]} 24. Rxb7 {[%clk 0:00:06.3]} 24... Nxc2 {[%clk
0:00:29.9]} 25. Rxa7 {[%clk 0:00:06.7]} 25... Ne3 {[%clk 0:00:29]} 26. Rf2
{[%clk 0:00:05.5]} 26... h5 {[%clk 0:00:25]} 27. Kg3 {[%clk 0:00:03.8]} 27... g6
{[%clk 0:00:20.8]} 28. a4 {[%clk 0:00:03.4]} 28... Nf5+ {[%clk 0:00:19.6]} 29.
Kf4 {[%clk 0:00:02]} 29... Rd8 {[%clk 0:00:18.5]} 30. g4 {[%clk 0:00:01.6]}
30... Rd4+ {[%clk 0:00:15.7]} 31. Kg5 {[%clk 0:00:01.8]} 31... Kg7 {[%clk
0:00:15.7]} 0-1

[Event "Late-Titled-Tuesday-Blitz-March-05-2024"]
[Site "Chess.com"]
[Date "2024.03.05"]
[Round "6"]
[White "SocoLoco"]
[Black "Zampronha1971"]
[Result "0-1"]
[WhiteElo "2217"]
[BlackElo "2338"]
[TimeControl "180+1"]
[EndTime "15:05:04 PST"]
[Termination "Zampronha1971 won on time"]

1. e4 {[%clk 0:03:00.9]} 1... c5 {[%clk 0:02:59.7]} 2. Nf3 {[%clk 0:02:59.6]}
2... e6 {[%clk 0:03:00.3]} 3. d3 {[%clk 0:02:59.7]} 3... d5 {[%clk 0:02:59.4]}
4. Nbd2 {[%clk 0:02:59.5]} 4... Nc6 {[%clk 0:02:57.2]} 5. g3 {[%clk 0:02:59.4]}
5... Nf6 {[%clk 0:02:55.9]} 6. Bg2 {[%clk 0:02:59.3]} 6... Be7 {[%clk
0:02:56.2]} 7. O-O {[%clk 0:02:59.2]} 7... O-O {[%clk 0:02:56.3]} 8. c3 {[%clk
0:02:59.3]} 8... b5 {[%clk 0:02:56]} 9. Qe2 {[%clk 0:02:57.6]} 9... a5 {[%clk
0:02:55.9]} 10. Nh4 {[%clk 0:02:57.3]} 10... b4 {[%clk 0:02:44.1]} 11. f4 {[%clk
0:02:54.6]} 11... dxe4 {[%clk 0:02:44.1]} 12. dxe4 {[%clk 0:02:53.5]} 12... Ba6
{[%clk 0:02:42.1]} 13. Nc4 {[%clk 0:02:42]} 13... Nd7 {[%clk 0:02:28.5]} 14. Rd1
{[%clk 0:02:29.6]} 14... Qc7 {[%clk 0:02:27.8]} 15. Nf3 {[%clk 0:02:09.2]} 15...
Nb6 {[%clk 0:02:21.6]} 16. Nfd2 {[%clk 0:02:07.4]} 16... Rfd8 {[%clk 0:02:20.6]}
17. cxb4 {[%clk 0:01:39.2]} 17... cxb4 {[%clk 0:02:17.9]} 18. b3 {[%clk
0:01:36.5]} 18... Nxc4 {[%clk 0:02:14.1]} 19. bxc4 {[%clk 0:01:34.9]} 19... Nd4
{[%clk 0:02:10.5]} 20. Qf1 {[%clk 0:01:29.5]} 20... Nc2 {[%clk 0:02:08.4]} 21.
Bb2 {[%clk 0:01:21.5]} 21... Nxa1 {[%clk 0:02:05.6]} 22. Bxa1 {[%clk 0:01:19.7]}
22... Bxc4 {[%clk 0:01:53.4]} 23. Qf3 {[%clk 0:00:25]} 23... Bxa2 {[%clk
0:01:48.1]} 24. Qg4 {[%clk 0:00:23.1]} 24... Bf8 {[%clk 0:01:46.9]} 25. f5
{[%clk 0:00:21.8]} 25... exf5 {[%clk 0:01:43.3]} 26. exf5 {[%clk 0:00:20.4]}
26... Qd7 {[%clk 0:01:11.5]} 27. Bxa8 {[%clk 0:00:15.1]} 27... Rxa8 {[%clk
0:01:09.6]} 28. Ne4 {[%clk 0:00:11.6]} 28... Qa7+ {[%clk 0:01:08.1]} 29. Kg2
{[%clk 0:00:09.4]} 29... Kh8 {[%clk 0:00:41.3]} 30. Bxg7+ {[%clk 0:00:04]} 30...
Bxg7 {[%clk 0:00:39.8]} 31. f6 {[%clk 0:00:04.9]} 31... Bh6 {[%clk 0:00:27.3]}
32. Rd7 {[%clk 0:00:05.2]} 32... Qe3 {[%clk 0:00:23]} 33. Rxf7 {[%clk
0:00:03.8]} 33... Bxf7 {[%clk 0:00:22.4]} 34. Nd6 {[%clk 0:00:01.4]} 34... Bd5+
{[%clk 0:00:20.4]} 0-1

[Event "Late-Titled-Tuesday-Blitz-March-05-2024"]
[Site "Chess.com"]
[Date "2024.03.05"]
[Round "6"]
[White "Walter_White_Poland"]
[Black "Vesapesa"]
[Result "1-0"]
[WhiteElo "2359"]
[BlackElo "2227"]
[TimeControl "180+1"]
[EndTime "15:05:08 PST"]
[Termination "Walter_White_Poland won on time"]

1. e4 {[%clk 0:02:57]} 1... e5 {[%clk 0:02:59.5]} 2. Nf3 {[%clk 0:02:55.3]} 2...
Nc6 {[%clk 0:02:59.2]} 3. Bb5 {[%clk 0:02:55.4]} 3... a6 {[%clk 0:02:57.7]} 4.
Ba4 {[%clk 0:02:53.9]} 4... d6 {[%clk 0:02:56.9]} 5. c3 {[%clk 0:02:52.2]} 5...
Bd7 {[%clk 0:02:55.3]} 6. d4 {[%clk 0:02:47.4]} 6... Nge7 {[%clk 0:02:54.6]} 7.
d5 {[%clk 0:02:47.5]} 7... Nb8 {[%clk 0:02:54.2]} 8. c4 {[%clk 0:02:47.9]} 8...
Bxa4 {[%clk 0:02:49.6]} 9. Qxa4+ {[%clk 0:02:47.1]} 9... Nd7 {[%clk 0:02:50]}
10. Nc3 {[%clk 0:02:45.5]} 10... Ng6 {[%clk 0:02:48.1]} 11. g3 {[%clk
0:02:44.8]} 11... Be7 {[%clk 0:02:46.3]} 12. h4 {[%clk 0:02:44.8]} 12... O-O
{[%clk 0:02:34.7]} 13. h5 {[%clk 0:02:45]} 13... Nh8 {[%clk 0:02:34.5]} 14. h6
{[%clk 0:02:40.6]} 14... g6 {[%clk 0:02:32.7]} 15. Be3 {[%clk 0:02:33.2]} 15...
f5 {[%clk 0:02:24.5]} 16. O-O-O {[%clk 0:02:29]} 16... fxe4 {[%clk 0:02:20.3]}
17. Nd2 {[%clk 0:02:22.9]} 17... b5 {[%clk 0:02:09]} 18. Qc2 {[%clk 0:02:20.4]}
18... bxc4 {[%clk 0:01:58.5]} 19. Ndxe4 {[%clk 0:01:48.2]} 19... Nb6 {[%clk
0:01:53.9]} 20. f4 {[%clk 0:01:38.3]} 20... exf4 {[%clk 0:01:47.3]} 21. gxf4
{[%clk 0:01:38.4]} 21... Qd7 {[%clk 0:01:43.1]} 22. Ng5 {[%clk 0:01:22.7]} 22...
Bxg5 {[%clk 0:01:41.6]} 23. fxg5 {[%clk 0:01:22.3]} 23... Rae8 {[%clk
0:01:37.1]} 24. Bxb6 {[%clk 0:01:19.8]} 24... cxb6 {[%clk 0:01:36]} 25. Ne4
{[%clk 0:01:17.8]} 25... b5 {[%clk 0:00:58.7]} 26. Rhf1 {[%clk 0:01:09.6]} 26...
Qg4 {[%clk 0:00:44.3]} 27. Rxf8+ {[%clk 0:00:32.4]} 27... Rxf8 {[%clk
0:00:43.9]} 28. Nf6+ {[%clk 0:00:31.4]} 28... Rxf6 {[%clk 0:00:42.6]} 29. gxf6
{[%clk 0:00:32.3]} 29... Nf7 {[%clk 0:00:31.5]} 30. Kb1 {[%clk 0:00:26.9]} 30...
Ne5 {[%clk 0:00:30.1]} 31. Rf1 {[%clk 0:00:20.6]} 31... Kf7 {[%clk 0:00:25.4]}
32. Qf2 {[%clk 0:00:18.4]} 32... Qe4+ {[%clk 0:00:22.6]} 33. Ka1 {[%clk
0:00:17.6]} 33... Qxd5 {[%clk 0:00:17.9]} 34. Qa7+ {[%clk 0:00:17.4]} 1-0

[Event "Late-Titled-Tuesday-Blitz-March-05-2024"]
[Site "Chess.com"]
[Date "2024.03.05"]
[Round "6"]
[White "kai_nov"]
[Black "ural58"]
[Result "0-1"]
[WhiteElo "2366"]
[BlackElo "2526"]
[TimeControl "180+1"]
[EndTime "15:05:10 PST"]
[Termination "ural58 won on time"]

1. d4 {[%clk 0:03:00.9]} 1... d5 {[%clk 0:02:58]} 2. c4 {[%clk 0:02:58.8]} 2...
e5 {[%clk 0:02:55.5]} 3. dxe5 {[%clk 0:02:58.5]} 3... d4 {[%clk 0:02:55.7]} 4.
Nf3 {[%clk 0:02:58.4]} 4... Nc6 {[%clk 0:02:56]} 5. Nbd2 {[%clk 0:02:56.9]} 5...
a5 {[%clk 0:02:53.8]} 6. Nb3 {[%clk 0:02:43.3]} 6... Bg4 {[%clk 0:02:51.7]} 7.
Nbxd4 {[%clk 0:02:36.4]} 7... Bc5 {[%clk 0:02:40]} 8. e3 {[%clk 0:01:32.3]} 8...
Nxd4 {[%clk 0:02:31.2]} 9. exd4 {[%clk 0:01:33]} 9... Bxf3 {[%clk 0:02:31.2]}
10. Qxf3 {[%clk 0:01:30.7]} 10... Qxd4 {[%clk 0:02:30.2]} 11. a3 {[%clk
0:01:09.9]} 11... Ne7 {[%clk 0:02:12.1]} 12. Be2 {[%clk 0:01:09.6]} 12... Nc6
{[%clk 0:02:03.9]} 13. O-O {[%clk 0:01:05.9]} 13... O-O {[%clk 0:01:53.9]} 14.
Bf4 {[%clk 0:00:41.7]} 14... Rae8 {[%clk 0:01:36.4]} 15. Qg3 {[%clk 0:00:32.6]}
15... Nxe5 {[%clk 0:01:28.7]} 16. Rfe1 {[%clk 0:00:27.6]} 16... Ng6 {[%clk
0:01:26.1]} 17. Bxc7 {[%clk 0:00:25.5]} 17... Qxb2 {[%clk 0:01:22.8]} 18. Bd3
{[%clk 0:00:21.6]} 18... b6 {[%clk 0:00:39.6]} 19. Bxg6 {[%clk 0:00:17]} 19...
fxg6 {[%clk 0:00:35.8]} 20. Bf4 {[%clk 0:00:15]} 20... g5 {[%clk 0:00:29.1]} 21.
Be3 {[%clk 0:00:10.8]} 21... Bxe3 {[%clk 0:00:27.4]} 22. fxe3 {[%clk 0:00:11.7]}
22... h6 {[%clk 0:00:18.5]} 23. h3 {[%clk 0:00:10.8]} 23... Re6 {[%clk
0:00:16.9]} 24. Rab1 {[%clk 0:00:09.2]} 24... Qxa3 {[%clk 0:00:16.2]} 25. Rb5
{[%clk 0:00:07.7]} 25... Rfe8 {[%clk 0:00:15.8]} 26. Qf2 {[%clk 0:00:02.6]}
26... Qd6 {[%clk 0:00:14.1]} 27. Rd5 {[%clk 0:00:02.2]} 27... Qc6 {[%clk
0:00:14.1]} 28. Red1 {[%clk 0:00:01.9]} 28... Qxc4 {[%clk 0:00:13.6]} 29. Rd7
{[%clk 0:00:01.8]} 29... Rxe3 {[%clk 0:00:10.6]} 0-1

[Event "Late-Titled-Tuesday-Blitz-March-05-2024"]
[Site "Chess.com"]
[Date "2024.03.05"]
[Round "6"]
[White "baki83"]
[Black "DanielNaroditsky"]
[Result "1/2-1/2"]
[WhiteElo "2827"]
[BlackElo "3086"]
[TimeControl "180+1"]
[EndTime "15:05:11 PST"]
[Termination "Game drawn by repetition"]

1. e4 {[%clk 0:03:00.9]} 1... c5 {[%clk 0:02:56]} 2. Nf3 {[%clk 0:03:00.9]} 2...
Nf6 {[%clk 0:02:56]} 3. e5 {[%clk 0:03:00.8]} 3... Nd5 {[%clk 0:02:56]} 4. Nc3
{[%clk 0:03:01.4]} 4... e6 {[%clk 0:02:55.8]} 5. g3 {[%clk 0:03:00.4]} 5... Nc6
{[%clk 0:02:50.4]} 6. Bg2 {[%clk 0:03:00]} 6... d6 {[%clk 0:02:50.3]} 7. exd6
{[%clk 0:02:50.4]} 7... Bxd6 {[%clk 0:02:51.2]} 8. Ne4 {[%clk 0:02:50.3]} 8...
Be7 {[%clk 0:02:51.5]} 9. O-O {[%clk 0:02:48.7]} 9... e5 {[%clk 0:02:48.4]} 10.
Nc3 {[%clk 0:02:25.3]} 10... Be6 {[%clk 0:02:47.6]} 11. Re1 {[%clk 0:02:25.1]}
11... f6 {[%clk 0:02:45.1]} 12. d3 {[%clk 0:02:05.2]} 12... O-O {[%clk
0:02:39.8]} 13. Bd2 {[%clk 0:02:05.6]} 13... Nc7 {[%clk 0:02:32.2]} 14. a3
{[%clk 0:01:58.5]} 14... Qd7 {[%clk 0:02:28.1]} 15. Rb1 {[%clk 0:01:57.7]} 15...
Rad8 {[%clk 0:02:23.5]} 16. Ne4 {[%clk 0:01:51.8]} 16... c4 {[%clk 0:02:11.5]}
17. dxc4 {[%clk 0:01:46.7]} 17... Bxc4 {[%clk 0:01:26.8]} 18. Be3 {[%clk
0:01:30]} 18... Qf5 {[%clk 0:01:14.6]} 19. Nfd2 {[%clk 0:01:29]} 19... Bd5
{[%clk 0:01:09.3]} 20. Qe2 {[%clk 0:01:19.8]} 20... Qg6 {[%clk 0:01:02.6]} 21.
c4 {[%clk 0:01:17.8]} 21... Be6 {[%clk 0:01:03.1]} 22. Nc5 {[%clk 0:01:18.1]}
22... Bg4 {[%clk 0:00:51.6]} 23. f3 {[%clk 0:01:05.7]} 23... Bf5 {[%clk
0:00:51.9]} 24. Rbd1 {[%clk 0:00:58.5]} 24... Bc2 {[%clk 0:00:41.7]} 25. Rc1
{[%clk 0:00:57.8]} 25... b6 {[%clk 0:00:42.4]} 26. Nde4 {[%clk 0:00:55.5]} 26...
Bxe4 {[%clk 0:00:39.8]} 27. Nxe4 {[%clk 0:00:55.3]} 27... Ne6 {[%clk 0:00:37.9]}
28. f4 {[%clk 0:00:53.6]} 28... exf4 {[%clk 0:00:27.9]} 29. gxf4 {[%clk
0:00:53.8]} 29... Ncd4 {[%clk 0:00:26]} 30. Qf2 {[%clk 0:00:51.6]} 30... Nf5
{[%clk 0:00:26.3]} 31. Kh1 {[%clk 0:00:45.3]} 31... Nxe3 {[%clk 0:00:20.7]} 32.
Qxe3 {[%clk 0:00:45.3]} 32... Bc5 {[%clk 0:00:14.8]} 33. Nxc5 {[%clk 0:00:36.7]}
33... Nxc5 {[%clk 0:00:15.7]} 34. b4 {[%clk 0:00:29.6]} 34... Nd3 {[%clk
0:00:05.9]} 35. Be4 {[%clk 0:00:29.5]} 35... Qxe4+ {[%clk 0:00:04.9]} 36. Qxe4
{[%clk 0:00:29.8]} 36... Nf2+ {[%clk 0:00:05.6]} 37. Kg2 {[%clk 0:00:30.3]}
37... Nxe4 {[%clk 0:00:06.5]} 38. Rxe4 {[%clk 0:00:30.5]} 38... Rd3 {[%clk
0:00:06.8]} 39. Re7 {[%clk 0:00:23.3]} 39... Rf7 {[%clk 0:00:06.4]} 40. Re8+
{[%clk 0:00:23.1]} 40... Rf8 {[%clk 0:00:07.1]} 41. Re7 {[%clk 0:00:23.8]} 41...
Rf7 {[%clk 0:00:02.6]} 42. Re8+ {[%clk 0:00:23.7]} 42... Rf8 {[%clk 0:00:02.9]}
43. Re7 {[%clk 0:00:24.4]} 1/2-1/2

[Event "Late-Titled-Tuesday-Blitz-March-05-2024"]
[Site "Chess.com"]
[Date "2024.03.05"]
[Round "6"]
[White "Jahonas"]
[Black "jinxy2009"]
[Result "1/2-1/2"]
[WhiteElo "2382"]
[BlackElo "2196"]
[TimeControl "180+1"]
[EndTime "15:05:17 PST"]
[Termination "Game drawn by stalemate"]

1. d4 {[%clk 0:03:00.9]} 1... Nf6 {[%clk 0:02:58]} 2. c4 {[%clk 0:03:00.8]} 2...
g6 {[%clk 0:02:58.4]} 3. Nc3 {[%clk 0:03:01]} 3... d5 {[%clk 0:02:58.6]} 4. Bf4
{[%clk 0:02:57.6]} 4... Bg7 {[%clk 0:02:58.1]} 5. e3 {[%clk 0:02:57.6]} 5... O-O
{[%clk 0:02:58.1]} 6. Nf3 {[%clk 0:02:57.4]} 6... c5 {[%clk 0:02:58.6]} 7. Qb3
{[%clk 0:02:53]} 7... cxd4 {[%clk 0:02:52.1]} 8. Nxd4 {[%clk 0:02:50.3]} 8...
Nc6 {[%clk 0:02:37.8]} 9. Nxc6 {[%clk 0:02:49.5]} 9... bxc6 {[%clk 0:02:37.7]}
10. Rd1 {[%clk 0:02:48.6]} 10... Qa5 {[%clk 0:02:23.6]} 11. Be2 {[%clk
0:02:33.6]} 11... Ne4 {[%clk 0:02:20.6]} 12. O-O {[%clk 0:02:23.2]} 12... Nxc3
{[%clk 0:02:16.8]} 13. bxc3 {[%clk 0:02:22.4]} 13... Qxc3 {[%clk 0:02:16.9]} 14.
Qxc3 {[%clk 0:02:13.6]} 14... Bxc3 {[%clk 0:02:14.8]} 15. cxd5 {[%clk
0:02:13.7]} 15... cxd5 {[%clk 0:02:14.8]} 16. Rxd5 {[%clk 0:02:13]} 16... Be6
{[%clk 0:02:15.3]} 17. Rc5 {[%clk 0:02:03.5]} 17... Rac8 {[%clk 0:02:06.4]} 18.
Rxc8 {[%clk 0:02:00]} 18... Rxc8 {[%clk 0:02:05.9]} 19. Rc1 {[%clk 0:02:00.1]}
19... f6 {[%clk 0:01:37.3]} 20. a4 {[%clk 0:01:40.7]} 20... Kf7 {[%clk
0:01:22.8]} 21. h3 {[%clk 0:01:39.8]} 21... Bd7 {[%clk 0:01:18.9]} 22. Bb5
{[%clk 0:01:36.4]} 22... Bxb5 {[%clk 0:01:07.6]} 23. axb5 {[%clk 0:01:35.3]}
23... e5 {[%clk 0:01:08.1]} 24. Bg3 {[%clk 0:01:34.1]} 24... Rc7 {[%clk
0:01:03.4]} 25. Kf1 {[%clk 0:01:29.2]} 25... Ba5 {[%clk 0:01:03.1]} 26. Rxc7+
{[%clk 0:01:27.8]} 26... Bxc7 {[%clk 0:01:04]} 27. Ke2 {[%clk 0:01:22.7]} 27...
Ke6 {[%clk 0:01:03.9]} 28. Kd3 {[%clk 0:01:20.6]} 28... Kd5 {[%clk 0:01:04.2]}
29. e4+ {[%clk 0:01:08.1]} 29... Kc5 {[%clk 0:01:04.2]} 30. f4 {[%clk
0:01:04.9]} 30... Kxb5 {[%clk 0:00:56.5]} 31. Bh4 {[%clk 0:01:02.4]} 31... f5
{[%clk 0:00:46.9]} 32. fxe5 {[%clk 0:00:59.1]} 32... Bxe5 {[%clk 0:00:46.2]} 33.
exf5 {[%clk 0:00:54]} 33... gxf5 {[%clk 0:00:45.8]} 34. g4 {[%clk 0:00:53.5]}
34... f4 {[%clk 0:00:33.8]} 35. Ke4 {[%clk 0:00:53]} 35... Bc7 {[%clk
0:00:30.8]} 36. Be7 {[%clk 0:00:50.5]} 36... a5 {[%clk 0:00:30.6]} 37. h4 {[%clk
0:00:49.9]} 37... a4 {[%clk 0:00:19.8]} 38. g5 {[%clk 0:00:49.8]} 38... Kc6
{[%clk 0:00:18.1]} 39. Ba3 {[%clk 0:00:36.7]} 39... Bd6 {[%clk 0:00:17.3]} 40.
Bc1 {[%clk 0:00:36.7]} 40... Kd7 {[%clk 0:00:16.9]} 41. h5 {[%clk 0:00:32.7]}
41... a3 {[%clk 0:00:15.8]} 42. Bxa3 {[%clk 0:00:31.5]} 42... Bxa3 {[%clk
0:00:14.8]} 43. Kxf4 {[%clk 0:00:31.6]} 43... Ke7 {[%clk 0:00:15.2]} 44. Kf5
{[%clk 0:00:31.6]} 44... Kf8 {[%clk 0:00:14.2]} 45. g6 {[%clk 0:00:31.1]} 45...
h6 {[%clk 0:00:14.5]} 46. Kf6 {[%clk 0:00:29.1]} 46... Bb2+ {[%clk 0:00:14.4]}
47. Kf5 {[%clk 0:00:29.5]} 47... Kg7 {[%clk 0:00:15.1]} 48. Kg4 {[%clk
0:00:29.8]} 48... Kf6 {[%clk 0:00:15.2]} 49. Kh3 {[%clk 0:00:30.7]} 49... Kg5
{[%clk 0:00:15.6]} 50. Kg2 {[%clk 0:00:31.6]} 50... Kxh5 {[%clk 0:00:16.1]} 51.
Kh1 {[%clk 0:00:32.5]} 51... Kxg6 {[%clk 0:00:16.6]} 52. Kg1 {[%clk 0:00:33.4]}
52... h5 {[%clk 0:00:16.8]} 53. Kh1 {[%clk 0:00:34.3]} 53... h4 {[%clk
0:00:17.7]} 54. Kg1 {[%clk 0:00:35.2]} 54... Kh5 {[%clk 0:00:18.4]} 55. Kh1
{[%clk 0:00:36.1]} 55... Kg4 {[%clk 0:00:19.3]} 56. Kg1 {[%clk 0:00:37]} 56...
h3 {[%clk 0:00:20.1]} 57. Kh1 {[%clk 0:00:37.9]} 57... Kg3 {[%clk 0:00:20.6]}
58. Kg1 {[%clk 0:00:38.8]} 58... h2+ {[%clk 0:00:21.4]} 59. Kh1 {[%clk
0:00:39.7]} 59... Bc3 {[%clk 0:00:21.2]} 1/2-1/2